bitfinex-derivatives/quotes_ETHF0:USTF0_20250804
["timestamp","ask_amount","ask_price","bid_price","bid_amount"]
[1754295898421,19.93618,3557.6,3557.4,0.56219]
[1754295899017,0.5622,3557.5,3557.1,3.2078]
[1754295899219,0.56221,3557.4,3557.1,3.2078]
[1754295899518,19.375,3557.3,3556.7,3.2078]
[1754295899713,19.375,3557.3,3557.1,0.56224]
[1754295899912,3.2078,3557.7,3556.8,2.8115]
[1754295900112,3.2078,3557.7,3557.6,0.56217]
[1754295900315,3.2078,3558.1,3558.0,0.5621]
[1754295900518,22.5828,3558.1,3558.0,0.5621]
[1754295901119,22.74211006,3558.1,3558.0,0.5621]
[1754295901320,0.56211,3558.0,3557.9,0.56212]
[1754295901626,19.375,3558.0,3557.9,0.56212]
[1754295902324,19.93711,3558.0,3557.8,0.56214]
[1754295902628,0.56218,3557.6,3557.3,0.56221]
[1754295902820,19.93919,3557.5,3557.3,0.5622]
[1754295903020,0.56221,3557.4,3557.2,0.56222]
[1754295903325,0.56225,3557.2,3557.0,0.56225]
[1754295903525,3.2078,3557.7,3556.6,3.2078]
[1754295903823,19.398,3557.6,3557.5,0.56219]
[1754295904023,0.56213,3557.9,3557.7,0.56214]
[1754295904222,19.409,3557.8,3557.7,0.56214]
[1754295905424,19.97115,3557.8,3557.6,0.56216]
[1754295905827,3.2078,3557.7,3557.0,3.2078]
[1754295906028,1.40543,3557.6,3556.6,3.2078]
[1754295906220,3.2078,3557.3,3556.4,1.4059]
[1754295906524,19.409,3557.2,3556.7,0.5623]
[1754295906726,0.56231,3556.7,3556.6,0.56232]
[1754295906928,19.99931,3556.7,3556.6,0.56232]
[1754295907320,19.437,3556.7,3556.6,0.56232]
[1754295907922,0.56226,3557.1,3557.0,0.56226]
[1754295908117,19.434,3557.1,3557.0,0.56225]
[1754295908324,0.56234,3556.6,3556.4,0.56236]
[1754295908530,3.2078,3556.7,3556.4,0.56235]
[1754295909028,19.457,3556.6,3556.4,0.56235]
[1754295909224,19.457,3556.6,3555.9,1.01238769]
[1754295909527,20.01934,3556.6,3556.3,0.56237]
[1754295910028,19.457,3556.6,3556.0,0.56242]
[1754295910333,0.56242,3556.1,3555.9,1.01238769]
[1754295910626,19.451,3556.0,3555.9,1.01238769]
[1754295911830,19.451,3556.0,3555.9,1.57482769]
[1754295912126,19.451,3556.0,3555.9,1.01238769]
[1754295912629,59.928,3556.0,3555.9,1.01238769]
[1754295914729,1.40619,3555.7,3554.1,3.2078]
[1754295914926,3.2078,3555.0,3554.1,3.2078]
[1754295915233,0.56267,3554.5,3554.1,3.77051]
[1754295915430,0.56272,3554.2,3553.6,3.2078]
[1754295915631,19.476,3554.1,3553.8,0.56277]
[1754295916031,19.476,3554.1,3553.6,3.2078]
[1754295916737,0.56282,3553.6,3553.4,0.56282]
[1754295916928,19.48,3553.5,3553.3,0.56284]
[1754295917236,19.48,3553.5,3553.2,3.77065]
[1754295917528,19.48,3553.5,3553.3,0.56285]
[1754295917929,19.48,3553.5,3553.2,3.2078]
[1754295918136,0.56285,3553.3,3552.9,1.57614252]
[1754295918528,0.56283,3553.5,3552.9,1.01324252]
[1754295918836,19.484,3553.4,3553.2,0.56285]
[1754295919029,3.2078,3553.8,3552.9,1.01324252]
[1754295919336,3.2078,3553.8,3553.2,0.56286]
[1754295919337,0.56281,3553.6,3553.2,0.56286]
[1754295919632,19.485,3553.7,3552.9,1.01324252]
[1754295919834,0.5628,3553.6,3553.3,0.56283]
[1754295920024,0.56281,3553.6,3553.3,0.56284]
[1754295920226,19.486,3553.5,3552.9,1.01324252]
[1754295920833,3.2078,3553.4,3552.9,1.01324252]
[1754295921037,0.56285,3553.3,3552.9,1.57614252]
[1754295921231,0.56285,3553.3,3553.0,0.56288]
[1754295921433,0.56285,3553.3,3552.9,1.01324252]
[1754295921434,0.56285,3553.3,3553.1,0.56287]
[1754295921633,3.77064,3553.4,3553.1,0.56287]
[1754295921934,3.77065,3553.4,3553.2,0.56285]
[1754295922133,3.77065,3553.4,3553.1,0.56287]
[1754295922434,19.481,3553.3,3553.1,0.56287]
[1754295922634,19.481,3553.3,3553.0,0.56289]
[1754295922836,20.04386,3553.3,3552.9,1.01324252]
[1754295923038,0.56289,3553.1,3552.9,1.57614252]
[1754295923234,19.481,3553.3,3553.1,0.56287]
[1754295924141,20.04386,3553.3,3553.0,0.56289]
[1754295924339,19.481,3553.3,3553.1,0.56287]
[1754295924638,3.2078,3553.8,3553.4,0.56282]
[1754295924842,20.26439735,3553.7,3553.5,0.5628]
[1754295925139,0.79339735,3553.6,3553.5,0.5628]
[1754295925341,3.2078,3553.8,3553.7,0.56279]
[1754295925641,20.28534999,3553.8,3553.7,0.56279]
[1754295926041,19.494,3553.8,3553.7,3.2078]
[1754295926243,4.21052507,3554.4,3554.3,0.56269]
[1754295926438,20.28543399,3554.4,3554.3,0.56269]
[1754295926740,0.79343399,3554.4,3554.3,0.56269]
[1754295926937,0.79343399,3554.6,3554.1,3.2078]
[1754295927243,5.40789399,3554.5,3553.6,3.2078]
[1754295927541,0.56281,3553.6,3553.4,0.56282]
[1754295927744,19.498,3553.6,3553.4,0.56282]
[1754295928042,19.502,3553.5,3553.3,0.56285]
[1754295928236,19.502,3553.5,3553.2,1.40717]
[1754295928237,3.2078,3554.3,3554.1,0.56272]
[1754295928444,0.79303548,3554.2,3554.0,0.56273]
[1754295928741,20.30203548,3554.1,3553.9,0.56274]
[1754295928954,0.79303548,3554.0,3553.9,0.56274]
[1754295929846,0.79303548,3554.0,3553.8,0.56276]
[1754295930045,0.79303548,3553.9,3553.8,0.56276]
[1754295930242,0.79303548,3554.0,3553.8,0.56276]
[1754295930445,0.79303548,3553.9,3553.8,0.56276]
[1754295930640,3.7705,3554.3,3553.8,0.56276]
[1754295930641,0.79303548,3554.0,3553.8,0.56276]
[1754295930841,0.79303548,3553.9,3553.8,3.77056]
[1754295931047,20.52372507,3554.5,3554.4,0.56268]
[1754295931341,20.31418771,3554.5,3554.4,0.56268]
[1754295931744,20.32118771,3554.5,3554.4,0.56268]
[1754295933337,0.79318771,3554.5,3554.4,0.56268]
[1754295934045,19.529,3554.8,3554.7,0.56263]
[1754295934245,20.31770194,3554.8,3554.7,0.56263]
[1754295934946,0.78870194,3554.8,3554.7,0.56263]
[1754295936752,1.94e-06,3554.8,3554.7,0.56263]
[1754295937447,22.7218,3555.4,3555.3,0.56253]
[1754295937745,19.511,3555.5,3555.0,3.2078]
[1754295937937,0.56254,3555.3,3555.1,0.56256]
[1754295938250,20.51475578,3555.4,3555.2,0.56254]
[1754295938953,19.511,3555.4,3555.1,0.56255]
[1754295939448,19.511,3555.4,3555.2,0.56254]
[1754295939449,0.56253,3555.3,3555.2,0.56254]
[1754295939647,0.56256,3555.2,3554.5,3.2078]
[1754295939852,20.07357,3555.1,3554.9,0.56258]
[1754295940348,0.56266,3554.6,3554.4,0.56266]
[1754295940548,19.511,3554.5,3554.4,0.56266]
[1754295942246,19.511,3554.5,3554.3,0.56268]
[1754295942747,20.07367,3554.5,3554.3,0.56268]
[1754295943650,0.56268,3554.4,3554.2,0.5627]
[1754295943949,0.56268,3554.4,3553.7,1.40697]
[1754295944349,0.5627,3554.3,3554.0,0.56272]
[1754295944549,19.521,3554.2,3554.0,0.56272]
[1754295947544,20.08371,3554.2,3554.0,0.56272]
[1754295947746,0.56275,3554.0,3553.8,0.56276]
[1754295947947,19.515,3553.9,3553.8,0.56276]
[1754295948247,19.515,3553.9,3553.6,0.56279]
[1754295948445,0.56278,3553.8,3553.2,1.40714]
[1754295948651,0.56281,3553.6,3553.4,0.56282]
[1754295948846,20.28549706,3553.5,3553.4,0.56282]
[1754295949061,20.28549706,3553.5,3553.3,0.56285]
[1754295949252,19.513,3553.5,3553.3,0.56285]
[1754295949452,19.513,3553.5,3552.9,1.01324252]
[1754295949650,3.98029194,3553.4,3553.1,0.56287]
[1754295949855,0.77249194,3553.3,3553.1,0.56287]
[1754295950051,0.77249194,3553.2,3553.1,0.56287]
[1754295950252,19.521,3553.3,3553.2,0.56286]
[1754295951151,19.521,3553.3,3553.0,0.56289]
[1754295951354,0.77245012,3553.2,3553.0,0.56289]
[1754295951654,19.521,3553.3,3553.1,0.56287]
[1754295951949,0.77245359,3553.2,3553.1,0.56287]
[1754295952154,19.521,3553.3,3553.1,0.56287]
[1754295952646,19.521,3553.3,3552.9,1.01324252]
[1754295952852,0.76936464,3553.2,3553.0,0.56289]
[1754295953158,23.29166,3553.3,3553.0,0.56289]
[1754295953358,1.33227454,3553.2,3552.9,1.57614252]
[1754295953554,1.33230454,3553.1,3552.9,1.01324252]
[1754295953856,0.56289,3553.1,3552.9,1.01324252]
[1754295954652,1.33230454,3553.1,3552.9,1.01324252]
[1754295954859,0.76941454,3553.0,3552.9,1.01324252]
[1754295955243,21.3084115,3553.0,3552.9,1.01324252]
[1754295955956,21.3064115,3553.0,3552.9,1.01324252]
[1754295956154,20.29841454,3553.0,3552.9,1.01324252]
[1754295956354,20.29841454,3553.0,3552.4,0.56299]
[1754295956551,3.2078,3552.6,3552.4,0.56299]
[1754295956861,20.29641454,3552.5,3552.3,0.563]
[1754295957061,20.08999,3552.5,3552.2,0.56302]
[1754295957560,0.56301,3552.4,3552.1,0.56303]
[1754295957761,20.08998,3552.5,3552.1,0.56303]
[1754295958058,19.527,3552.5,3551.8,0.56309]
[1754295958247,3.2078,3552.2,3551.8,0.56309]
[1754295958453,19.52,3552.1,3551.8,0.56309]
[1754295958855,20.08304,3552.1,3551.7,0.56309]
[1754295959257,20.08305,3552.1,3551.7,0.56309]
[1754295959661,20.08305,3552.1,3551.8,0.56307]
[1754295959856,20.08305,3552.1,3551.7,0.56309]
[1754295960261,19.52,3552.1,3551.0,3.2078]
[1754295960455,3.2078,3551.8,3551.6,0.5631]
[1754295960657,19.517,3551.7,3551.6,0.5631]
[1754295961257,19.517,3551.7,3551.5,0.56312]
[1754295961457,19.514,3551.6,3551.5,0.56312]
[1754295961657,20.07712,3551.6,3551.4,3.2078]
[1754295961860,19.514,3551.6,3551.5,0.56313]
[1754295962065,0.56306,3552.0,3551.1,1.408]
[1754295962265,19.515,3551.9,3551.0,3.2078]
[1754295962466,0.56313,3551.6,3551.2,0.56317]
[1754295962759,19.522,3551.5,3551.2,0.56317]
[1754295963363,0.56317,3551.3,3551.0,0.5632]
[1754295963558,3.2078,3551.1,3550.1,3.2078]
[1754295963863,3.2078,3551.1,3549.9,1.01409879]
[1754295963864,19.628,3551.0,3550.7,0.56325]
[1754295964259,19.628,3551.0,3550.3,3.2078]
[1754295964465,19.628,3551.0,3550.8,0.56323]
[1754295964655,0.56311,3551.7,3551.3,0.56315]
[1754295964860,19.659,3551.6,3551.4,0.56314]
[1754295965060,0.56306,3552.0,3551.6,0.5631]
[1754295965367,0.5631,3551.8,3551.4,0.56314]
[1754295965675,40.536,3552.2,3551.4,1.40788]
[1754295965963,40.536,3552.2,3551.9,0.56306]
[1754295965964,19.661,3552.1,3551.9,0.56306]
[1754295966166,40.536,3552.2,3552.1,0.56304]
[1754295966467,3.2078,3552.9,3551.8,3.2078]
[1754295966766,19.662,3552.8,3552.7,0.56294]
[1754295966964,19.662,3552.8,3552.6,0.56295]
[1754295967165,19.662,3552.8,3552.5,0.56296]
[1754295968062,3.2078,3552.9,3552.8,0.56293]
[1754295968262,19.657,3552.9,3552.8,0.56293]
[1754295970068,19.657,3552.9,3552.6,0.56295]
[1754295970370,19.657,3552.9,3552.7,0.56293]
[1754295972071,3.2078,3553.3,3553.1,0.56288]
[1754295972264,19.643,3553.2,3553.1,0.56288]
[1754295972865,1.40725,3553.0,3552.1,0.56304]
[1754295973066,21.0502,3553.2,3551.7,0.5631]
[1754295973067,0.56302,3552.2,3551.7,0.5631]
[1754295973371,20.33805,3552.1,3551.6,0.56311]
[1754295973571,19.774,3552.0,3551.4,3.2078]
[1754295973771,19.774,3552.0,3551.8,0.56307]
[1754295973965,19.774,3552.0,3551.8,3.77087]
[1754295974864,19.774,3552.0,3551.8,0.56307]
[1754295977476,0.00422308,3552.3,3552.2,0.56302]
[1754295977768,19.75522308,3552.3,3552.2,0.56302]
[1754295978073,0.00422308,3552.3,3552.2,0.56302]
[1754295979272,3.08e-06,3552.3,3552.2,0.56302]
[1754295981072,40.533,3554.0,3553.9,0.56275]
[1754295981277,61.20619926,3554.0,3553.9,0.56275]
[1754295981978,41.45819926,3554.0,3553.9,0.56275]
[1754295982171,20.50656082,3554.0,3553.9,0.56275]
[1754295984378,19.749,3554.0,3553.9,0.56275]
[1754295985081,0.56275,3553.9,3553.5,3.2078]
[1754295985378,19.749,3554.0,3553.8,0.56276]
[1754295985680,20.31174,3554.0,3553.8,0.56276]
[1754295985877,19.749,3554.0,3553.8,0.56276]
[1754295986382,19.749,3554.0,3553.8,0.56275]
[1754295986679,0.56276,3553.9,3553.7,0.56277]
[1754295987477,0.56281,3553.6,3553.3,0.56283]
[1754295987673,19.719,3553.5,3553.4,0.56282]
[1754295996381,3.2078,3554.4,3553.9,0.56275]
[1754295996585,3.2078,3554.4,3554.3,0.56269]
[1754295996780,23.05048575,3554.4,3554.3,0.56269]
[1754295996976,3.37548575,3554.4,3554.3,0.56269]
[1754295997287,19.673,3554.4,3554.3,0.56269]
[1754296001583,19.673,3554.4,3554.1,3.2078]
[1754296001888,20.23568,3554.4,3554.2,0.5627]
[1754296002084,19.673,3554.4,3554.2,0.5627]
[1754296006589,19.673,3554.4,3554.1,3.2078]
[1754296006590,3.2078,3554.9,3554.8,0.56261]
[1754296006791,3.2078,3555.3,3555.2,0.56254]
[1754296013000,3.2078,3555.3,3555.1,0.56255]
[1754296013001,3.77034,3555.3,3555.1,0.56255]
[1754296013202,3.77034,3555.3,3555.0,0.56257]
[1754296013499,0.56255,3555.2,3554.9,0.56258]
[1754296013699,0.56257,3555.1,3554.9,0.56258]
[1754296014996,3.2078,3555.3,3554.4,1.40668]
[1754296015200,0.56256,3555.1,3555.0,0.56256]
[1754296015401,3.77036,3555.1,3555.0,0.56256]
[1754296015596,3.77036,3555.1,3554.4,1.40668]
[1754296015801,14.86626,3555.5,3554.9,0.56258]
[1754296015802,0.56258,3555.0,3554.9,0.56258]
[1754296016002,3.2078,3555.0,3554.9,0.56258]
[1754296017993,0.56259,3554.9,3554.8,0.5626]
[1754296018599,0.56262,3554.8,3554.7,0.56261]
[1754296018795,0.5626,3554.9,3554.6,0.56263]
[1754296019003,0.56262,3554.8,3554.6,0.56263]
[1754296019203,0.5626,3554.9,3554.6,0.56263]
[1754296019401,0.56262,3554.8,3554.5,0.56265]
[1754296019705,3.2078,3554.6,3554.5,0.56265]
[1754296024112,3.2078,3554.6,3554.4,0.56266]
[1754296024507,3.2078,3554.6,3554.3,0.56268]
[1754296024707,3.2078,3554.6,3554.4,0.56266]
[1754296024909,3.2078,3554.6,3554.0,1.41104308]
[1754296025312,3.2078,3554.6,3554.0,0.00422308]
[1754296025515,3.2078,3554.6,3554.4,0.56267]
[1754296025808,3.2078,3554.6,3554.4,0.56266]
[1754296026414,3.77044,3554.6,3554.3,0.56268]
[1754296026616,3.77044,3554.6,3554.4,0.56266]
[1754296027113,3.2078,3554.6,3554.4,0.56266]
[1754296027913,3.77045,3554.6,3554.3,0.56268]
[1754296028318,0.56266,3554.5,3554.2,0.56269]
[1754296028512,3.2078,3554.6,3554.0,0.00422308]
[1754296028913,3.77052,3554.2,3554.0,0.00422308]
[1754296029113,3.77051,3554.2,3554.0,0.56694308]
[1754296029606,3.2078,3554.2,3554.0,0.56694308]
[1754296030110,3.2078,3554.7,3554.1,0.56272]
[1754296030309,19.563,3554.6,3554.5,0.56265]
[1754296031623,19.563,3554.6,3554.4,0.56267]
[1754296034626,20.12565,3554.6,3554.4,0.56267]
[1754296034930,20.12565,3554.6,3554.3,0.56268]
[1754296035229,20.12565,3554.6,3554.4,0.56267]
[1754296036026,0.5627,3554.3,3554.2,0.5627]
[1754296036229,3.2078,3554.3,3554.1,0.56271]
[1754296036525,19.535,3554.2,3554.1,0.56271]
[1754296037617,19.535,3554.2,3554.0,0.56694308]
[1754296038528,20.09771,3554.2,3554.0,0.56694308]
[1754296038925,20.09771,3554.2,3554.0,0.00422308]
[1754296039125,20.09771,3554.2,3554.0,0.56694308]
[1754296039328,19.535,3554.2,3554.0,0.56694308]
[1754296040528,20.09772,3554.2,3554.0,0.56694308]
[1754296040934,20.09772,3554.2,3554.0,0.00422308]
[1754296043232,0.16847158,3554.1,3554.0,0.00422308]
[1754296043633,0.92812228,3554.1,3554.0,0.00422308]
[1754296044031,1.14835356,3554.1,3554.0,0.00422308]
[1754296044529,0.16847158,3554.1,3554.0,0.00422308]
[1754296044725,0.16847158,3554.2,3554.1,0.56272]
[1754296044932,22.7338,3554.3,3554.1,0.56272]
[1754296046937,23.2965,3554.3,3554.0,0.56694308]
[1754296047137,0.56271,3554.2,3554.0,0.00422308]
[1754296047537,0.73109571,3554.2,3554.0,0.00422308]
[1754296047936,1.49087611,3554.2,3554.0,0.00422308]
[1754296048230,0.16840736,3554.1,3554.0,0.00422308]
[1754296048939,0.16838274,3554.1,3554.0,0.00422308]
[1754296050529,0.56285,3553.3,3552.6,1.40739]
[1754296050733,23.29467,3553.2,3552.6,1.40739]
[1754296050934,22.7318,3553.2,3552.3,3.2078]
[1754296051134,0.5629,3553.0,3552.7,0.56293]
[1754296051335,3.77074,3552.8,3552.5,0.56296]
[1754296051735,3.2078,3552.8,3552.6,0.56294]
[1754296052237,3.2078,3552.8,3552.6,0.56295]
[1754296053035,19.549,3552.7,3552.6,0.56295]
[1754296053745,19.549,3552.7,3551.9,3.2078]
[1754296053947,19.549,3552.7,3551.6,1.40779]
[1754296054346,20.11195,3552.7,3551.7,0.5631]
[1754296054545,20.11195,3552.7,3551.8,1.40772]
[1754296054748,19.549,3552.7,3551.9,3.2078]
[1754296055045,19.549,3552.7,3552.5,0.56296]
[1754296056340,0.56287,3553.2,3552.5,0.56296]
[1754296056541,20.14689,3553.1,3552.8,0.56291]
[1754296056941,19.584,3553.1,3552.9,0.5629]
[1754296058448,20.14689,3553.1,3552.8,0.56292]
[1754296059148,19.584,3553.1,3552.9,0.5629]
[1754296059649,0.56287,3553.2,3552.9,0.5629]
[1754296059847,20.1339,3553.0,3552.7,0.56293]
[1754296060045,19.571,3553.0,3552.4,1.40748]
[1754296060239,19.571,3553.0,3552.8,0.56292]
[1754296061347,19.571,3553.0,3552.3,3.2078]
[1754296061647,0.56293,3552.8,3552.6,0.56295]
[1754296061838,19.568,3552.7,3552.6,0.56295]
[1754296062251,19.568,3552.7,3552.5,0.56296]
[1754296068259,0.56296,3552.6,3552.4,0.56299]
[1754296068952,0.56296,3552.6,3552.4,0.56298]
[1754296069259,0.56296,3552.6,3552.3,0.56299]
[1754296069659,0.56296,3552.6,3552.4,0.56298]
[1754296070056,0.56298,3552.5,3552.3,0.56299]
[1754296070256,0.56298,3552.5,3552.0,1.40764]
[1754296070257,0.56297,3552.6,3552.4,0.56298]
[1754296070657,22.7758,3552.7,3551.4,7.13003002]
[1754296070859,0.56298,3552.5,3552.2,0.56301]
[1754296071051,23.33874,3552.7,3552.4,0.56299]
[1754296071357,3.2078,3552.7,3552.5,0.56297]
[1754296071556,3.2078,3553.2,3553.0,0.56288]
[1754296071756,19.608,3553.1,3553.0,0.56288]
[1754296072357,3.2078,3553.2,3553.0,0.56288]
[1754296072654,19.607,3553.1,3553.0,0.56288]
[1754296073158,22.8148,3553.2,3553.0,0.56288]
[1754296075458,22.8088,3553.2,3553.0,0.56288]
[1754296078359,19.601,3553.2,3553.0,0.56288]
[1754296079555,0.56284,3553.4,3553.2,0.56286]
[1754296079753,19.583,3553.3,3553.2,0.56286]
[1754296080753,1.40716,3553.2,3552.1,2.51439002]
[1754296080956,3.2078,3552.5,3552.0,2.51439002]
[1754296081251,19.598,3552.4,3552.1,0.56304]
[1754296081453,0.56306,3552.0,3551.8,2.51439002]
[1754296081656,0.56306,3552.0,3551.7,2.51439002]
[1754296081856,23.36885,3552.1,3551.7,3.07748002]
[1754296082056,23.36885,3552.1,3551.8,2.51439002]
[1754296082566,0.56306,3552.0,3551.7,2.51439002]
[1754296083059,23.36885,3552.1,3551.7,3.07748002]
[1754296083253,23.36885,3552.1,3551.7,2.51439002]
[1754296083562,22.8058,3552.1,3551.7,2.51439002]
[1754296083760,22.8058,3552.1,3551.8,0.56308]
[1754296084260,22.8058,3552.1,3551.7,0.56309]
[1754296084664,0.56306,3552.0,3551.6,0.56311]
[1754296084865,22.8058,3552.1,3551.7,0.56309]
[1754296085160,0.56306,3552.0,3551.6,0.56311]
[1754296085556,23.36884,3552.1,3551.7,0.56309]
[1754296085853,22.8058,3552.1,3551.8,0.56308]
[1754296086356,22.8058,3552.1,3551.6,0.5631]
[1754296086557,0.56305,3552.0,3551.6,0.5631]
[1754296086753,3.2078,3551.7,3551.1,3.2078]
[1754296087055,19.577,3551.6,3551.1,3.2078]
[1754296087255,19.577,3551.6,3551.5,0.56312]
[1754296089266,19.577,3551.6,3551.5,3.77092]
[1754296091262,3.2078,3552.3,3552.1,0.56303]
[1754296091567,19.57,3552.4,3552.0,1.40764]
[1754296092065,19.57,3552.4,3552.3,0.563]
[1754296092270,3.2078,3552.7,3552.6,0.56296]
[1754296092467,22.7978,3552.7,3552.6,0.56296]
[1754296093967,22.96182612,3552.7,3552.6,0.56296]
[1754296094167,22.96182612,3552.7,3552.5,0.56297]
[1754296094361,22.7978,3552.7,3552.5,0.56297]
[1754296094562,19.585,3552.6,3552.5,0.56297]
[1754296094870,19.585,3552.6,3552.4,0.56298]
[1754296097067,3.2078,3552.7,3552.6,0.56296]
[1754296097275,22.7918,3552.7,3552.6,0.56296]
[1754296097667,19.584,3552.7,3552.6,0.56296]
[1754296100369,19.584,3552.7,3551.9,3.2078]
[1754296100370,20.14695,3552.7,3552.0,1.40764]
[1754296100670,19.584,3552.7,3552.5,0.56296]
[1754296100865,43.7368,3552.8,3552.6,0.56295]
[1754296101168,19.59,3552.7,3552.6,0.56295]
[1754296103777,19.59,3552.7,3552.5,0.56296]
[1754296106775,20.15295,3552.7,3552.4,0.56298]
[1754296107077,0.56296,3552.6,3552.4,0.56298]
[1754296107278,19.567,3552.5,3552.4,0.56298]
[1754296107676,20.12998,3552.5,3552.3,0.56299]
[1754296107882,0.563,3552.4,3552.2,0.56301]
[1754296108078,43.7368,3552.8,3551.7,1.40774]
[1754296108079,22.7688,3552.3,3551.7,1.40774]
[1754296108376,19.561,3552.2,3551.7,1.40774]
[1754296108580,0.56304,3552.1,3551.9,0.56305]
[1754296108784,19.563,3552.0,3551.9,0.56305]
[1754296109279,19.563,3552.0,3551.8,0.56307]
[1754296109280,20.12606,3552.0,3551.8,0.56307]
[1754296109877,0.56308,3551.8,3551.1,4.61579]
[1754296110075,19.558,3551.7,3551.1,4.61579]
[1754296110272,19.558,3551.7,3550.7,3.92251002]
[1754296110273,3.2078,3551.5,3550.9,0.56323]
[1754296110478,19.578,3551.4,3551.3,0.56316]
[1754296110678,19.578,3551.4,3550.6,3.2078]
[1754296111382,19.578,3551.4,3550.8,0.56323]
[1754296111783,19.578,3551.4,3550.9,0.56321]
[1754296112375,19.578,3551.4,3550.6,3.2078]
[1754296112376,20.14116,3551.4,3550.8,0.56323]
[1754296112583,19.578,3551.4,3550.8,0.56323]
[1754296112780,19.578,3551.4,3550.6,3.2078]
[1754296113985,19.578,3551.4,3551.0,0.5632]
[1754296114285,19.578,3551.4,3551.2,0.56317]
[1754296114683,3.2078,3551.6,3551.3,0.56315]
[1754296114885,3.2078,3551.6,3551.4,0.56313]
[1754296115086,19.563,3551.5,3551.4,0.56313]
[1754296115284,3.2078,3551.6,3551.4,0.56313]
[1754296115484,19.564,3551.7,3551.5,0.56313]
[1754296115675,3.2078,3552.0,3551.8,0.56307]
[1754296115883,19.563,3551.9,3551.2,1.40795]
[1754296116386,19.563,3551.9,3551.0,3.2078]
[1754296116588,3.2078,3552.0,3551.0,4.61581]
[1754296116887,20.12308,3551.9,3551.3,0.56315]
[1754296117085,0.56308,3551.8,3551.3,0.56315]
[1754296117387,19.56,3551.9,3551.0,3.2078]
[1754296117589,19.56,3551.9,3551.5,0.56312]
[1754296117888,3.2078,3552.0,3551.8,0.56307]
[1754296118187,19.558,3551.9,3551.8,0.56307]
[1754296118488,19.558,3551.9,3551.1,1.40799]
[1754296118986,19.558,3551.9,3551.0,3.2078]
[1754296119490,20.12108,3551.9,3551.4,0.56314]
[1754296119888,0.56308,3551.8,3551.4,0.56314]
[1754296120091,0.56308,3551.8,3551.3,0.56316]
[1754296120787,0.56308,3551.8,3551.0,3.2078]
[1754296121391,0.56308,3551.8,3551.4,0.56314]
[1754296121590,20.12108,3551.9,3551.4,0.56314]
[1754296121783,0.56309,3551.8,3551.4,0.56314]
[1754296122288,3.2078,3552.0,3551.6,0.5631]
[1754296122488,19.55,3551.7,3551.6,0.5631]
[1754296122690,19.55,3551.7,3551.0,3.2078]
[1754296122890,19.55,3551.7,3551.4,0.56314]
[1754296124590,19.55,3551.7,3551.5,0.56313]
[1754296126685,20.1131,3551.7,3551.4,0.56314]
[1754296127189,19.55,3551.7,3551.5,0.56312]
[1754296127491,3.2078,3552.0,3551.6,0.56311]
[1754296127687,19.527,3551.9,3551.7,0.56309]
[1754296127991,19.525,3551.8,3551.7,0.56309]
[1754296129291,19.525,3551.8,3551.6,0.56311]
[1754296131093,19.525,3551.8,3551.5,0.56312]
[1754296131395,20.08809,3551.8,3551.4,0.56314]
[1754296131688,19.525,3551.8,3551.5,0.56312]
[1754296131893,19.525,3551.8,3551.6,0.56311]
[1754296132192,20.08809,3551.8,3551.2,1.40795]
[1754296132394,19.525,3551.8,3551.5,0.56312]
[1754296132594,19.525,3551.8,3551.6,0.56311]
[1754296133894,19.525,3551.8,3551.6,0.5631]
[1754296134096,19.525,3551.8,3551.5,0.56311]
[1754296134097,20.08808,3551.8,3551.5,0.56311]
[1754296134393,19.525,3551.8,3551.6,0.5631]
[1754296134787,20.08808,3551.8,3551.5,0.56311]
[1754296135098,0.56309,3551.7,3551.4,0.56313]
[1754296135291,20.08808,3551.8,3551.5,0.56311]
[1754296135496,20.08808,3551.8,3551.1,1.40797]
[1754296135789,0.56309,3551.7,3551.1,1.40797]
[1754296135995,20.08808,3551.8,3551.5,0.56311]
[1754296136497,20.08808,3551.8,3551.6,0.5631]
[1754296136998,20.08808,3551.8,3551.5,0.56311]
[1754296137296,20.08808,3551.8,3551.6,0.5631]
[1754296137699,0.56309,3551.7,3551.5,0.56311]
[1754296137893,19.525,3551.8,3551.1,1.40797]
[1754296138194,0.5631,3551.7,3551.1,1.40797]
[1754296138396,0.5631,3551.7,3551.5,0.56312]
[1754296138596,0.5631,3551.7,3551.1,1.40797]
[1754296139097,20.08808,3551.8,3551.6,0.5631]
[1754296139298,0.1647737,3551.7,3551.6,0.5631]
[1754296139600,0.7278737,3551.7,3551.5,0.56311]
[1754296139895,0.5631,3551.7,3551.5,0.56311]
[1754296140399,0.56311,3551.6,3551.4,0.56313]
[1754296140698,19.506,3551.5,3551.4,0.56313]
[1754296140894,22.7138,3551.5,3551.4,0.56313]
[1754296141789,3.2078,3551.5,3551.4,0.56313]
[1754296141999,3.2078,3552.1,3552.0,0.56304]
[1754296142196,23.63976644,3552.1,3552.0,0.56304]
[1754296142902,23.6398962,3552.1,3552.0,0.56304]
[1754296143198,4.1338962,3552.1,3552.0,0.56304]
[1754296143502,23.4751292,3552.1,3552.0,0.56304]
[1754296143804,20.2673292,3552.1,3552.0,0.56304]
[1754296143998,1.00799696,3552.7,3552.6,0.56295]
[1754296144299,19.67074487,3552.7,3552.5,0.56296]
[1754296144498,4.13394502,3552.6,3552.5,0.56296]
[1754296145004,3.96920015,3552.6,3552.5,0.56296]